fUSD/lending_fUSD_20260503
["ID","MTS","AMOUNT","RATE_DAILY","PERIOD"]
[421525985,1777823541000,-1770.0,0.00032,120]
[421525984,1777823541000,-1770.0,0.00032,120]
[421525983,1777823541000,-1770.0,0.00032,120]
[421525982,1777823541000,-1770.0,0.00032,120]
[421525980,1777823541000,-1770.0,0.00032,120]
[421525999,1777823541000,-155.0,0.00033224,30]
[421525988,1777823541000,-500.0,0.00032,90]
[421525997,1777823541000,-159.0,0.00033209,30]
[421526014,1777823541000,-159.0,0.00036209,30]
[421526001,1777823541000,-165.0,0.00033224,30]
[421525998,1777823541000,-161.0,0.00033224,30]
[421526017,1777823541000,-3751.15391466,0.00036389,30]
[421526018,1777823541000,-379.48,0.00036939,30]
[421526016,1777823541000,-159.9,0.00036301,30]
[421526015,1777823541000,-155.0,0.00036224,30]
[421526013,1777823541000,-157.59,0.000359,30]
[421526012,1777823541000,-246.51,0.0003553,30]
[421526010,1777823541000,-164.0,0.00035224,30]
[421526011,1777823541000,-155.0,0.00035224,30]
[421526008,1777823541000,-3866.636,0.00034712,39]
[421526006,1777823541000,-155.0,0.00034224,30]
[421526007,1777823541000,-155.0,0.00034224,30]
[421526005,1777823541000,-161.0,0.00034224,30]
[421526004,1777823541000,-159.0,0.00034209,30]
[421526003,1777823541000,-157.59,0.000342,30]
[421526002,1777823541000,-150.0,0.00034,30]
[421526000,1777823541000,-155.0,0.00033224,30]
[421526009,1777823541000,-159.0,0.00035209,30]
[421526028,1777823542000,-353.61110339,0.00038356,30]
[421526034,1777823542000,-190.394205,0.0003942,33]
[421526032,1777823542000,-666.0,0.00038899,30]
[421526033,1777823542000,-619.16,0.00039,30]
[421526030,1777823542000,-361.0,0.00038394,30]
[421526031,1777823542000,-157.74,0.000385,30]
[421526029,1777823542000,-600.01,0.00038356,30]
[421526020,1777823542000,-159.0,0.00037209,30]
[421526025,1777823542000,-1104.94,0.00038034,30]
[421526026,1777823542000,-280.0,0.00038064,30]
[421526024,1777823542000,-250.0,0.00038,30]
[421526023,1777823542000,-30000.0,0.00038,30]
[421526021,1777823542000,-155.0,0.00037224,30]
[421526022,1777823542000,-157.59,0.000379,30]
[421526019,1777823542000,-212.16666204,0.00036986,60]
[421526035,1777823542000,-379.48,0.00039679,30]
[421526027,1777823542000,-69533.29452289,0.000381,33]
[421526036,1777823542000,-290.601123,0.00039719,30]
[421526042,1777823542000,-197.240889,0.00039784,30]
[421526039,1777823542000,-290.601123,0.00039719,30]
[421526056,1777823542000,-151.0,0.00039784,30]
[421526055,1777823542000,-151.0,0.00039784,30]
[421526054,1777823542000,-151.0,0.00039784,30]
[421526053,1777823542000,-151.0,0.00039784,30]
[421526037,1777823542000,-242.807095,0.00039719,30]
[421526051,1777823542000,-151.0,0.00039784,30]
[421526050,1777823542000,-151.0,0.00039784,30]
[421526049,1777823542000,-1044.143243,0.00039784,30]
[421526052,1777823542000,-151.0,0.00039784,30]
[421526047,1777823542000,-1044.143243,0.00039784,30]
[421526046,1777823542000,-1044.143243,0.00039784,30]
[421526044,1777823542000,-197.240889,0.00039784,30]
[421526045,1777823542000,-197.240889,0.00039784,30]
[421526043,1777823542000,-151.0,0.00039784,30]
[421526040,1777823542000,-290.601123,0.00039719,30]
[421526041,1777823542000,-197.240889,0.00039784,30]
[421526038,1777823542000,-290.601123,0.00039719,30]
[421526048,1777823542000,-1044.143243,0.00039784,30]
[421526064,1777823543000,-307.0,0.000405,30]
[421526061,1777823543000,-321.58391101,0.000401,30]
[421526062,1777823543000,-53982.66246389,0.00040237,120]
[421526057,1777823543000,-151.0,0.00039784,30]
[421526060,1777823543000,-619.16,0.000401,30]
[421526063,1777823543000,-2148.69340775,0.00040237,120]
[421526058,1777823543000,-356667.7024,0.00039978,30]
[421526059,1777823543000,-344.0,0.0004,30]
[421526066,1777823543000,-314.0,0.000405,30]
[421526073,1777823543000,321.583911,0.000401,30]
[421526068,1777823543000,-403.48626574,0.00040822,120]
[421526075,1777823543000,321.583911,0.000401,30]
[421526074,1777823543000,282.0,0.00041095,30]
[421526071,1777823543000,837.41048501,0.00041095,30]
[421526065,1777823543000,-1000.0,0.000405,30]
[421526070,1777823543000,-10000.0,0.00041096,30]
[421526069,1777823543000,-344.0,0.00041,30]
[421526067,1777823543000,-881.0,0.000405,30]
[421526072,1777823543000,1082.66255534,0.00041095,30]
[421526076,1777823566000,-47.0,0.00019462,2]
[421526077,1777823566000,-104.0,0.00019462,2]
[421526088,1777823567000,-500.0,0.00019462,2]
[421526086,1777823567000,-151.0,0.00019462,2]
[421526085,1777823567000,-151.0,0.00019462,2]
[421526083,1777823567000,-151.0,0.00019462,2]
[421526080,1777823567000,-151.0,0.00019462,2]
[421526084,1777823567000,-151.0,0.00019462,2]
[421526079,1777823567000,-500.0,0.00019462,2]
[421526078,1777823567000,-47.0,0.00019462,2]
[421526087,1777823567000,-254.32836244,0.00019462,2]
[421526081,1777823567000,-273.98554512,0.00019462,2]
[421526090,1777823567000,-500.0,0.00019462,2]
[421526082,1777823567000,-151.0,0.00019462,2]
[421526089,1777823567000,-500.0,0.00019462,2]
[421526091,1777823567000,-500.0,0.00019462,2]
[421526097,1777823567000,-300.0,0.00020816,2]
[421526099,1777823567000,-300.0,0.00020816,2]
[421526100,1777823567000,-1023.51361166,0.00021409,2]
[421526098,1777823567000,-300.0,0.00020816,2]
[421526101,1777823567000,-300.0,0.00021409,2]
[421526095,1777823567000,-282.66,0.0002,2]
[421526092,1777823567000,-500.0,0.00019462,2]
[421526094,1777823567000,-300.0,0.00019731,2]
[421526093,1777823567000,-500.0,0.00019462,2]
[421526096,1777823567000,-282.88888271,0.00020548,10]
[421526133,1777823568000,-694.90965632,0.00022154,2]
[421526141,1777823568000,-694.90965632,0.00022154,2]
[421526140,1777823568000,-694.90965632,0.00022154,2]
[421526139,1777823568000,-694.90965632,0.00022154,2]
[421526137,1777823568000,-694.90965632,0.00022154,2]
[421526135,1777823568000,-694.90965632,0.00022154,2]
[421526132,1777823568000,-694.90965632,0.00022154,2]
[421526130,1777823568000,-694.90965632,0.00022154,2]
[421526127,1777823568000,-694.90965632,0.00022154,2]
[421526144,1777823568000,-694.90965632,0.00022154,2]
[421526134,1777823568000,-694.90965632,0.00022154,2]
[421526142,1777823568000,-694.90965632,0.00022154,2]
[421526148,1777823568000,-694.90965632,0.00022154,2]
[421526138,1777823568000,-694.90965632,0.00022154,2]
[421526143,1777823568000,-694.90965632,0.00022154,2]
[421526146,1777823568000,-694.90965632,0.00022154,2]
[421526145,1777823568000,-694.90965632,0.00022154,2]
[421526147,1777823568000,-694.90965632,0.00022154,2]
[421526149,1777823568000,-694.90965632,0.00022154,2]
[421526150,1777823568000,-694.90965632,0.00022154,2]
[421526151,1777823568000,-694.90965632,0.00022154,2]
[421526155,1777823568000,-1000.0,0.000232,7]
[421526153,1777823568000,-12810.45335442,0.00022236,2]
[421526129,1777823568000,-694.90965632,0.00022154,2]
[421526136,1777823568000,-694.90965632,0.00022154,2]
[421526131,1777823568000,-694.90965632,0.00022154,2]
[421526107,1777823568000,-707.77835366,0.00022154,2]
[421526126,1777823568000,-694.90965632,0.00022154,2]
[421526102,1777823568000,-1000.0,0.00022154,2]
[421526103,1777823568000,-1000.0,0.00022154,2]
[421526104,1777823568000,-1097.19038784,0.00022154,15]
[421526109,1777823568000,-707.77835366,0.00022154,2]
[421526110,1777823568000,-707.77835366,0.00022154,2]
[421526105,1777823568000,-707.77835366,0.00022154,2]
[421526111,1777823568000,-707.77835366,0.00022154,2]
[421526108,1777823568000,-707.77835366,0.00022154,2]
[421526106,1777823568000,-707.77835366,0.00022154,2]
[421526152,1777823568000,-694.90965632,0.00022154,2]
[421526113,1777823568000,-707.77835366,0.00022154,2]
[421526128,1777823568000,-694.90965632,0.00022154,2]
[421526112,1777823568000,-707.77835366,0.00022154,2]
[421526116,1777823568000,-707.77835366,0.00022154,2]
[421526115,1777823568000,-707.77835366,0.00022154,2]
[421526119,1777823568000,-707.77835366,0.00022154,2]
[421526118,1777823568000,-707.77835366,0.00022154,2]
[421526117,1777823568000,-707.77835366,0.00022154,2]
[421526121,1777823568000,-694.90965632,0.00022154,2]
[421526120,1777823568000,-694.90965632,0.00022154,2]
[421526122,1777823568000,-694.90965632,0.00022154,2]
[421526123,1777823568000,-694.90965632,0.00022154,2]
[421526124,1777823568000,-694.90965632,0.00022154,2]
[421526125,1777823568000,-694.90965632,0.00022154,2]
[421526114,1777823568000,-707.77835366,0.00022154,2]
[421526154,1777823568000,-5286.24821246,0.00022592,2]
[421526166,1777823568000,-275.61,0.00024658,2]
[421526156,1777823568000,-200.0,0.00023327,2]
[421526187,1777823568000,-206.28,0.00025841,2]
[421526188,1777823568000,-501.76177234,0.00025943,2]
[421526189,1777823568000,-500.0,0.00025943,2]
[421526190,1777823568000,-500.0,0.00025943,2]
[421526191,1777823568000,-500.0,0.00025943,2]
[421526193,1777823568000,-500.0,0.00025943,2]
[421526194,1777823568000,-501.49599921,0.00025943,2]
[421526157,1777823568000,-157.87459434,0.00023423,2]
[421526195,1777823568000,-500.0,0.00025943,2]
[421526198,1777823568000,-434.162805,0.0002606,14]
[421526192,1777823568000,-500.0,0.00025943,2]
[421526197,1777823568000,-199.753243,0.0002606,14]
[421526199,1777823568000,-4000.0,0.0002608,2]
[421526200,1777823568000,-283.06,0.0002624,2]
[421526201,1777823568000,-450.0,0.00026301,2]
[421526203,1777823568000,-2000.0,0.00026472,2]
[421526202,1777823568000,-5000.0,0.00026472,2]
[421526204,1777823568000,-1000.0,0.00026491,2]
[421526206,1777823568000,-1000.0,0.00026491,2]
[421526209,1777823568000,-1000.0,0.00026491,2]
[421526205,1777823568000,-1000.0,0.00026491,2]
[421526207,1777823568000,-219.94613923,0.00026491,2]
[421526208,1777823568000,-1000.0,0.00026491,2]
[421526210,1777823568000,-1727.22,0.00026591,2]
[421526211,1777823568000,-546.87323069,0.00026591,2]
[421526185,1777823568000,-350.0,0.00025753,2]
[421526186,1777823568000,-623.03,0.0002579,2]
[421526196,1777823568000,-191.709843,0.00025977,14]
[421526182,1777823568000,-1321.157755,0.00025538,14]
[421526159,1777823568000,-623.03,0.00023641,2]
[421526158,1777823568000,-341.87567502,0.00023567,2]
[421526184,1777823568000,-296.45,0.00025607,4]
[421526162,1777823568000,-4000.0,0.00024302,2]
[421526164,1777823568000,-697.91446052,0.00024649,2]
[421526163,1777823568000,-12810.45335439,0.00024442,2]
[421526161,1777823568000,-225.49665508,0.00023905,10]
[421526165,1777823568000,-150.0,0.00024658,2]
[421526168,1777823568000,-161.7,0.00024658,2]
[421526167,1777823568000,-164.67,0.00024658,2]
[421526170,1777823568000,-286.65663759,0.00024749,2]
[421526169,1777823568000,-623.03,0.00024715,2]
[421526160,1777823568000,-4000.0,0.00023709,2]
[421526173,1777823568000,-501.39415227,0.0002494,2]
[421526171,1777823568000,-898.0246822,0.00024841,2]
[421526183,1777823568000,-550.55,0.00025607,2]
[421526180,1777823568000,-160.0,0.00025538,14]
[421526179,1777823568000,-4000.0,0.00025487,2]
[421526178,1777823568000,-208.98,0.00025282,2]
[421526181,1777823568000,-740.578877,0.00025538,14]
[421526176,1777823568000,-500.0,0.00025187,2]
[421526177,1777823568000,-250.0,0.00025205,2]
[421526172,1777823568000,-4000.0,0.00024895,2]
[421526174,1777823568000,-1213.87,0.0002498,2]
[421526175,1777823568000,-11449.31,0.0002498,2]
[421526221,1777823569000,-406.11739145,0.00027039,2]
[421526230,1777823569000,-1503.88575088,0.00027587,5]
[421526231,1777823569000,-2000.0,0.00027587,5]
[421526226,1777823569000,-200.18,0.00027397,2]
[421526227,1777823569000,-275.61,0.00027397,2]
[421526224,1777823569000,-1500.0,0.000271,7]
[421526223,1777823569000,-1500.0,0.00027039,2]
[421526232,1777823569000,-391.2748952,0.00027587,2]
[421526222,1777823569000,-1500.0,0.00027039,2]
[421526217,1777823569000,-552.71566209,0.00026849,2]
[421526220,1777823569000,-1500.0,0.00027039,2]
[421526225,1777823569000,-178.83,0.00027188,2]
[421526219,1777823569000,-1514.51073399,0.00027039,2]
[421526216,1777823569000,-12810.45335439,0.00026648,2]
[421526215,1777823569000,-299.99,0.00026591,12]
[421526214,1777823569000,-9999.99,0.00026591,2]
[421526213,1777823569000,-150.99,0.00026591,2]
[421526212,1777823569000,-453.11676931,0.00026591,2]
[421526233,1777823569000,-623.03,0.00027939,2]
[421526218,1777823569000,-623.03,0.00026864,2]
[421526234,1777823569000,-728.07557888,0.00028135,5]
[421526228,1777823569000,-866.93,0.00027397,10]
[421526237,1777823569000,-2408.28828078,0.00028854,2]
[421526235,1777823569000,-159.83,0.00028362,2]
[421526255,1777823569000,-608.0,0.0003,10]
[421526252,1777823569000,-1519.56982,0.00029969,14]
[421526253,1777823569000,-10065.0,0.0003,10]
[421526251,1777823569000,-195.878022,0.00029969,14]
[421526245,1777823569000,-2000.0,0.00029781,2]
[421526249,1777823569000,-670.984453,0.00029874,14]
[421526248,1777823569000,-1000.0,0.00029825,5]
[421526246,1777823569000,-216.135502,0.00029787,14]
[421526243,1777823569000,-500.0,0.00029277,5]
[421526250,1777823569000,-300.0,0.000299,10]
[421526244,1777823569000,-7776.078214,0.00029369,14]
[421526242,1777823569000,-500.0,0.00029277,5]
[421526240,1777823569000,-286.65663759,0.00029149,2]
[421526241,1777823569000,-508.51623789,0.00029277,5]
[421526238,1777823569000,-10402.16507361,0.00028854,2]
[421526254,1777823569000,-308.98603991,0.0003,10]
[421526239,1777823569000,-623.03,0.00029014,2]
[421526229,1777823569000,-157.87459434,0.00027497,2]
[421526247,1777823569000,-1000.0,0.00029825,5]
[421526236,1777823569000,-159.93,0.00028428,2]
[421526289,1777823570000,-2000.0,0.000311,7]
[421526288,1777823570000,-12810.45335439,0.0003106,2]
[421526284,1777823570000,-150.0,0.00030958,7]
[421526283,1777823570000,-150.0,0.00030929,7]
[421526281,1777823570000,-2000.0,0.00030921,5]
[421526286,1777823570000,-150.0,0.00031039,7]
[421526290,1777823570000,-170.27,0.00031107,2]
[421526282,1777823570000,-2000.0,0.00030921,5]
[421526295,1777823570000,-150.0,0.0003128,7]
[421526304,1777823570000,-10138.0225476,0.00031471,2]
[421526293,1777823570000,-623.03,0.00031163,2]
[421526294,1777823570000,-150.0,0.00031258,7]
[421526292,1777823570000,-150.0,0.00031148,7]
[421526299,1777823570000,-150.0,0.0003145,7]
[421526297,1777823570000,-150.0,0.00031316,7]
[421526296,1777823570000,-150.0,0.0003128,7]
[421526298,1777823570000,-150.0,0.00031368,7]
[421526300,1777823570000,-150.0,0.0003145,7]
[421526301,1777823570000,-2500.0,0.00031469,5]
[421526280,1777823570000,-150.0,0.00030819,7]
[421526291,1777823570000,-150.0,0.00031137,7]
[421526277,1777823570000,-150.0,0.000306,7]
[421526268,1777823570000,-150.0,0.000306,7]
[421526279,1777823570000,-150.0,0.00030779,7]
[421526256,1777823570000,-1620.28922693,0.0003,10]
[421526258,1777823570000,-2101.43795739,0.0003,10]
[421526257,1777823570000,-1075.38158507,0.0003,10]
[421526260,1777823570000,-135.51369934,0.0003,2]
[421526259,1777823570000,-327.66026881,0.0003,10]
[421526261,1777823570000,-64.48630066,0.0003,2]
[421526262,1777823570000,-623.03,0.00030088,2]
[421526263,1777823570000,-275.61,0.00030137,2]
[421526264,1777823570000,-1500.0,0.00030373,5]
[421526265,1777823570000,-1500.0,0.00030373,5]
[421526285,1777823570000,-150.0,0.00031025,7]
[421526266,1777823570000,-129577.9279698,0.00030395,2]
[421526267,1777823570000,-150.0,0.000306,7]
[421526302,1777823570000,-2500.0,0.00031469,5]
[421526270,1777823570000,-298.70687485,0.000306,7]
[421526273,1777823570000,-150.0,0.000306,7]
[421526272,1777823570000,-150.0,0.000306,7]
[421526271,1777823570000,-150.0,0.000306,7]
[421526274,1777823570000,-215.16938307,0.000306,7]
[421526275,1777823570000,-150.0,0.000306,7]
[421526278,1777823570000,-150.0,0.0003071,7]
[421526276,1777823570000,-150.0,0.000306,7]
[421526269,1777823570000,-150.0,0.000306,7]
[421526306,1777823570000,-150.0,0.00031495,7]
[421526287,1777823570000,-200.0,0.00031057,2]
[421526303,1777823570000,-452.498973,0.00031471,2]
[421526333,1777823570000,-150.0,0.000323,7]
[421526330,1777823570000,-150.0,0.00032211,7]
[421526335,1777823570000,-150.0,0.000323,7]
[421526336,1777823570000,-4000.22236081,0.000323,2]
[421526339,1777823570000,-84369.9900692,0.00032443,2]
[421526344,1777823570000,-8565.75555911,0.00032487,2]
[421526340,1777823570000,-168.78,0.00032454,2]
[421526343,1777823570000,-578.20924308,0.00032487,2]
[421526337,1777823570000,-150.0,0.00032355,7]
[421526338,1777823570000,-150.0,0.00032389,7]
[421526334,1777823570000,-150.0,0.000323,7]
[421526342,1777823570000,-500.76418708,0.00032473,5]
[421526346,1777823570000,-1280.88388878,0.00032487,2]
[421526348,1777823570000,-157.59,0.000325,7]
[421526352,1777823570000,-9211.34798985,0.00032597,2]
[421526351,1777823570000,-150.0,0.00032574,7]
[421526353,1777823570000,-150.0,0.0003264,7]
[421526349,1777823570000,-8882.6885148,0.00032542,2]
[421526350,1777823570000,-150.0,0.00032568,7]
[421526347,1777823570000,-174.61919141,0.00032487,2]
[421526354,1777823570000,-150.0,0.0003264,7]
[421526305,1777823570000,-150.0,0.00031477,7]
[421526345,1777823570000,-882.87441119,0.00032487,2]
[421526328,1777823570000,-150.0,0.00032032,7]
[421526341,1777823570000,-150.0,0.00032465,7]
[421526331,1777823570000,-623.03,0.00032237,2]
[421526307,1777823570000,-157.87459436,0.00031571,2]
[421526332,1777823570000,-150.0,0.00032245,7]
[421526312,1777823570000,-150.0,0.00031674,7]
[421526310,1777823570000,-187.59061475,0.000316,2]
[421526309,1777823570000,-187.59061476,0.000316,2]
[421526308,1777823570000,-150.0,0.00031587,7]
[421526311,1777823570000,-187.59061475,0.000316,2]
[421526314,1777823570000,-150.0,0.00031733,7]
[421526315,1777823570000,-150.0,0.00031806,7]
[421526317,1777823570000,-150.0,0.00031853,7]
[421526322,1777823570000,-150.0,0.0003196,7]
[421526313,1777823570000,-150.0,0.00031697,7]
[421526327,1777823570000,-150.0,0.00032026,7]
[421526323,1777823570000,-150.0,0.0003196,7]
[421526319,1777823570000,-200.0,0.00031905,2]
[421526318,1777823570000,-150.0,0.00031875,7]
[421526316,1777823570000,-164.67,0.0003184,2]
[421526321,1777823570000,-161.7,0.00031927,2]
[421526324,1777823570000,-500.0,0.00031978,23]
[421526326,1777823570000,-3003.70297435,0.00032017,5]
[421526325,1777823570000,-1859.48712633,0.00032017,5]
[421526320,1777823570000,-150.0,0.00031916,7]
[421526329,1777823570000,-150.0,0.00032135,7]
[421526391,1777823571000,-150.0,0.00033342,7]
[421526402,1777823571000,-150.0,0.00033781,7]
[421526408,1777823571000,-150.0,0.0003389,7]
[421526392,1777823571000,-150.0,0.00033452,7]
[421526386,1777823571000,-12810.45335439,0.00033267,2]
[421526381,1777823571000,-150.0,0.00033123,7]
[421526387,1777823571000,-150.0,0.00033284,7]
[421526388,1777823571000,-623.03,0.00033312,2]
[421526389,1777823571000,-150.0,0.0003332,7]
[421526394,1777823571000,-286.65663759,0.00033549,2]
[421526385,1777823571000,-150.0,0.00033232,7]
[421526393,1777823571000,-150.0,0.00033463,7]
[421526404,1777823571000,-153.0,0.000338,7]
[421526397,1777823571000,-187.78006525,0.00033583,2]
[421526399,1777823571000,-150.0,0.00033642,7]
[421526400,1777823571000,-150.0,0.00033671,7]
[421526395,1777823571000,-150.0,0.00033561,7]
[421526401,1777823571000,-670.984453,0.0003377,21]
[421526398,1777823571000,-200.0,0.00033602,2]
[421526403,1777823571000,-600.0,0.000338,12]
[421526405,1777823571000,-150.0,0.00033821,7]
[421526411,1777823571000,-501.6718281,0.00033973,5]
[421526410,1777823571000,-3296.43558961,0.000339,2]
[421526390,1777823571000,-150.0,0.0003332,7]
[421526396,1777823571000,-150.0,0.00033575,7]
[421526383,1777823571000,-150.0,0.0003315,7]
[421526358,1777823571000,-9905.5980765,0.00032707,2]
[421526382,1777823571000,-150.0,0.0003315,7]
[421526357,1777823571000,-150.0,0.00032684,7]
[421526355,1777823571000,-9552.16786547,0.00032652,2]
[421526356,1777823571000,-180.5031891,0.00032668,9]
[421526360,1777823571000,-150.0,0.00032747,7]
[421526368,1777823571000,-251.06735799,0.00032876,2]
[421526366,1777823571000,-11046.30350255,0.00032872,2]
[421526365,1777823571000,-150.0,0.00032867,7]
[421526364,1777823571000,-10652.17309792,0.00032817,2]
[421526363,1777823571000,-150.0,0.00032794,7]
[421526359,1777823571000,-150.0,0.00032725,7]
[421526367,1777823571000,-164.67,0.00032876,7]
[421526361,1777823571000,-200.0,0.00032753,2]
[421526362,1777823571000,-10272.10520533,0.00032762,2]
[421526369,1777823571000,-161.7,0.00032876,7]
[421526370,1777823571000,-275.61,0.00032877,2]
[421526371,1777823571000,-150.0,0.00032903,7]
[421526372,1777823571000,-150.0,0.00032926,7]
[421526374,1777823571000,-499.86959847,0.00032937,25]
[421526378,1777823571000,-181.08010149,0.00033035,2]
[421526373,1777823571000,-11455.01673214,0.00032927,2]
[421526377,1777823571000,-421.68730651,0.00033035,2]
[421526376,1777823571000,-150.0,0.00033013,7]
[421526375,1777823571000,-11050.9500733,0.00032982,2]
[421526379,1777823571000,-2000.0,0.0003309,2]
[421526380,1777823571000,-150.0,0.00033105,7]
[421526384,1777823571000,-7776.078214,0.000332,21]
[421526407,1777823571000,-1519.56982,0.00033878,21]
[421526433,1777823571000,-400.0,0.0003418,2]
[421526406,1777823571000,-195.878022,0.00033878,21]
[421526444,1777823571000,-150.0,0.00035,2]
[421526442,1777823571000,-201.93286099,0.00034679,2]
[421526443,1777823571000,-1500.0,0.00034795,2]
[421526446,1777823571000,-2000.0,0.000351,7]
[421526445,1777823571000,-179.987,0.00035,2]
[421526448,1777823571000,-209.40437684,0.00035227,2]
[421526458,1777823571000,-275.61,0.00035616,2]
[421526449,1777823571000,-200.0,0.00035299,2]
[421526451,1777823571000,-623.03,0.00035461,2]
[421526450,1777823571000,-295.90885131,0.00035411,10]
[421526447,1777823571000,-640.00842144,0.00035226,2]
[421526437,1777823571000,-1134.711388,0.00034255,21]
[421526452,1777823571000,-177.915936,0.00035468,21]
[421526454,1777823571000,-364.44,0.0003553,2]
[421526455,1777823571000,-179.2,0.0003553,2]
[421526457,1777823571000,-161.87113344,0.00035616,2]
[421526459,1777823571000,-217.15233878,0.00035775,2]
[421526462,1777823571000,-500.0,0.00035966,10]
[421526463,1777823571000,-500.0,0.00035966,10]
[421526461,1777823571000,-500.0,0.00035966,10]
[421526464,1777823571000,-500.0,0.00035966,10]
[421526460,1777823571000,-500.0,0.00035966,10]
[421526466,1777823571000,-500.0,0.00035966,10]
[421526465,1777823571000,-500.0,0.00035966,10]
[421526456,1777823571000,-500.0,0.00035616,5]
[421526441,1777823571000,-1053.0,0.00034562,5]
[421526453,1777823571000,-12810.45335439,0.00035473,2]
[421526439,1777823571000,-623.03,0.00034386,2]
[421526438,1777823571000,-4991.0,0.00034356,2]
[421526412,1777823571000,-210.6485892,0.00033997,14]
[421526413,1777823571000,-151.0,0.00033997,14]
[421526414,1777823571000,-366.53815918,0.00033999,10]
[421526417,1777823571000,-1086.0,0.00034,5]
[421526418,1777823571000,-181.37420682,0.00034,7]
[421526420,1777823571000,-150.0,0.00034,7]
[421526415,1777823571000,-328.2358,0.00033999,2]
[421526416,1777823571000,-300.0,0.00033999,10]
[421526419,1777823571000,-150.0,0.00034,7]
[421526422,1777823571000,-150.0,0.00034,7]
[421526423,1777823571000,-150.0,0.00034,7]
[421526421,1777823571000,-150.0,0.00034,7]
[421526409,1777823571000,-900.0,0.000339,12]
[421526425,1777823571000,-150.0,0.00034,7]
[421526436,1777823571000,-363.0,0.0003418,2]
[421526428,1777823571000,-400.0,0.0003418,2]
[421526431,1777823571000,-400.0,0.0003418,2]
[421526429,1777823571000,-400.0,0.0003418,2]
[421526434,1777823571000,-400.0,0.0003418,2]
[421526440,1777823571000,-200.0,0.0003445,2]
[421526432,1777823571000,-400.0,0.0003418,2]
[421526430,1777823571000,-400.0,0.0003418,2]
[421526426,1777823571000,-194.72792766,0.00034131,2]
[421526424,1777823571000,-150.0,0.00034,7]
[421526435,1777823571000,-400.0,0.0003418,2]
[421526427,1777823571000,-1792.7942142,0.00034153,2]
[421526511,1777823572000,-320.23046505,0.00037419,2]
[421526505,1777823572000,-290.0,0.00036925,2]
[421526508,1777823572000,-1351.0,0.00037387,2]
[421526506,1777823572000,-200.0,0.00036995,2]
[421526503,1777823572000,-150.0,0.00036925,2]
[421526507,1777823572000,-3534.0,0.00037387,2]
[421526502,1777823572000,-150.0,0.00036925,2]
[421526501,1777823572000,-150.0,0.00036925,2]
[421526498,1777823572000,-283.06,0.00036736,2]
[421526500,1777823572000,-233.51889341,0.00036871,2]
[421526513,1777823572000,-150.0,0.00037551,2]
[421526510,1777823572000,-1267.0,0.00037387,2]
[421526504,1777823572000,-150.0,0.00036925,2]
[421526514,1777823572000,-150.243,0.00037551,2]
[421526519,1777823572000,-400.0,0.0003758,2]
[421526518,1777823572000,-400.0,0.0003758,2]
[421526517,1777823572000,-981.0,0.00037551,2]
[421526522,1777823572000,-12810.45335439,0.00037679,2]
[421526512,1777823572000,-200.0,0.00037551,2]
[421526509,1777823572000,-150.258,0.00037387,2]
[421526523,1777823572000,-21604.2,0.000377,2]
[421526516,1777823572000,-205.749,0.00037551,2]
[421526520,1777823572000,-702.74865982,0.0003758,2]
[421526521,1777823572000,-623.03,0.0003761,2]